[Event "II Duchamp Open 2018"]
[Site "Rio de Janeiro"]
[Date "2018.11.14"]
[Round "1"]
[White "Rodi, Luis Ernesto"]
[Black "Rodrigues, Nei Jorge"]
[Result "1-0"]
[ECO "A45"]
[WhiteElo "2327"]
[BlackElo "1978"]
[Annotator "RC"]
[PlyCount "101"]
[EventDate "2018.11.14"]
[EventType "swiss"]
[EventCountry "BRA"]
[SourceTitle "playchess.com"]
[Source "ChessBase"]
[SourceQuality "1"]
[TimeControl "5400+30"]

1. d4 Nf6 2. Bg5 g6 3. Bxf6 exf6 {[%emt 0:00:44]} 4. e3 {[%emt 0:00:57]} d5 {[%emt 0:03:25]} 5. c4 {[%emt 0:00:30]} c6 {[%emt 0:00:40]} 6. cxd5 {[%emt 0:00:36]} Qxd5 {[%emt 0:02:57]} 7. Nc3 {[%emt 0:00:26]} Qa5 {[%emt 0:02:12]} 8. Bc4 {[%emt 0:04:07]} Bd6 {[%emt 0:06:33]} 9. h4 {[%emt 0:00:47]} h5 {[%emt 0:01:09]} 10. Qc2 {[%emt 0:00:46]} Na6 {[%emt 0:04:15]} 11. Nge2 {[%emt 0:02:37]} b5 {[%emt 0:03:35]} 12. Qe4+ {[%emt 0:00:43]} Kf8 {[%emt 0:00:49]} 13. Qxc6 {[%emt 0:00:59]} bxc4 {[%emt 0:00:18]} 14. Qxa8 {[%emt 0:01:11]} Kg7 {[%emt 0:00:05]} 15. Qd5 {[%emt 0:00:17]} Qb6 {[%emt 0:12:01]} 16. Qxc4 {[%emt 0:05:38]} Bd7 {[%emt 0:02:52]} 17. O-O {[%emt 0:00:54]} Rc8 {[%emt 0:01:30]} 18. Qb3 {[%emt 0:00:14]} Qd8 {[%emt 0:00:36]} 19. Ne4 {[%emt 0:03:58]} Be7 {[%emt 0:03:31]} 20. Nf4 {[%emt 0:03:58]} Rb8 {[%emt 0:03:37]} 21. Qc3 {[%emt 0:01:50]} Bb4 {[%emt 0:07:06]} 22. Qc2 {[%emt 0:01:24]} Bf5 {[%emt 0:03:05]} 23. Qa4 {[%emt 0:04:15]} Bxe4 {[%emt 0:08:51]} 24. Qxa6 {[%emt 0:00:07]} Bd6 {[%emt 0:00:26]} 25. b3 {[%emt 0:01:49]} Qd7 {[%emt 0:09:28]} 26. Qe2 {[%emt 0:04:41]} Re8 {[%emt 0:01:16]} 27. f3 {[%emt 0:04:20]} Bc6 {[%emt 0:02:11]} 28. Qf2 {[%emt 0:00:08]} Qe7 {[%emt 0:06:02]} 29. Rac1 {[%emt 0:02:04]} Bb5 {[%emt 0:00:42]} 30. Rfe1 {[%emt 0:00:10]} Ba3 {[%emt 0:03:44]} 31. Nd5 {[%emt 0:04:09]} Qb7 {[%emt 0:01:17]} 32. e4 {[%emt 0:00:33]} Rd8 {[%emt 0:02:38]} 33. Rc7 {[%emt 0:03:30]} Qb8 {[%emt 0:00:15]} 34. Qc2 {[%emt 0:00:12]} Bd6 {[%emt 0:00:21]} 35. Rc1 {[%emt 0:01:06]} Bd7 {[%emt 0:02:48]} 36. Qc3 {[%emt 0:11:50]} Be6 {[%emt 0:00:30]} 37. Ne3 {[%emt 0:01:37]} Bf4 {[%emt 0:01:35]} 38. Kf2 {[%emt 0:01:18]} Rd7 {[%emt 0:00:14]} 39. Rc8 {[%emt 0:03:43]} Bg3+ {[%emt 0:00:58]} 40. Ke2 {[%emt 0:00:50]} Qf4 {[%emt 0:01:11]} 41. d5 {[%emt 0:01:57]} Bg4 {[%emt 0:00:01]} 42. Qc5 {[%emt 0:03:30]} Rd6 {[%emt 0:00:58]} 43. fxg4 {[%emt 0:00:34]} Qxe4 {[%emt 0:01:47]} 44. Qc4 {[%emt 0:06:03]} Qe5 {[%emt 0:00:45]} 45. Qc3 {[%emt 0:01:09]} Qe4 {[%emt 0:00:22]} 46. Qd3 {[%emt 0:00:14]} Qe5 {[%emt 0:00:25]} 47. R8c4 {[%emt 0:01:10]} hxg4 {[%emt 0:00:48]} 48. Qe4 {[%emt 0:01:36]} Qb2+ {[%emt 0:01:03]} 49. R4c2 {[%emt 0:00:42]} Qa3 {[%emt 0:00:08]} 50. Qxg4 {[%emt 0:00:11]} Be5 {[%emt 0:00:28]} 51. Nf5+ {[%emt 0:00:08]} 1-0

[Event "II Duchamp Open 2018"]
[Site "Rio de Janeiro"]
[Date "2018.11.14"]
[Round "1"]
[White "Baeta, Marcio Netto"]
[Black "Guimaraes, Diogo Duarte"]
[Result "0-1"]
[ECO "C24"]
[WhiteElo "1977"]
[BlackElo "2272"]
[Annotator "RC"]
[PlyCount "38"]
[EventDate "2018.11.14"]
[EventType "swiss"]
[EventCountry "BRA"]
[SourceTitle "playchess.com"]
[Source "ChessBase"]
[SourceQuality "1"]
[TimeControl "5400+30"]

1. e4 {[%emt 0:00:00]} e5 {[%emt 0:03:54]} 2. Bc4 {[%emt 0:00:48]} Nf6 {[%emt 0:00:08]} 3. d4 {[%emt 0:00:07]} exd4 {[%emt 0:00:18]} 4. Nf3 {[%emt 0:00:55]} Nxe4 {[%emt 0:00:35]} 5. Qxd4 {[%emt 0:00:56]} Nf6 {[%emt 0:00:15]} 6. Bg5 {[%emt 0:04:52]} Nc6 {[%emt 0:00:28]} 7. Qh4 {[%emt 0:01:56]} d5 {[%emt 0:02:23]} 8. Bxf6 {[%emt 0:01:17]} gxf6 {[%emt 0:00:09]} 9. Bb3 {[%emt 0:01:42]} Qe7+ {[%emt 0:01:44]} 10. Kd1 {[%emt 0:00:22]} Be6 {[%emt 0:01:15]} 11. Nc3 {[%emt 0:03:39]} O-O-O {[%emt 0:00:20]} 12. Kc1 {[%emt 0:05:47]} d4 {[%emt 0:05:38]} 13. Ne4 {[%emt 0:04:27]} f5 {[%emt 0:02:28]} 14. Neg5 {[%emt 0:03:20]} Bxb3 {[%emt 0:03:30]} 15. axb3 {[%emt 0:01:25]} Qc5 {[%emt 0:09:20]} 16. Nxf7 {[%emt 0:01:09]} Rd7 {[%emt 0:00:15]} 17. Nxh8 {[%emt 0:01:28]} Nb4 {[%emt 0:00:03]} 18. Ne1 {[%emt 0:03:17]} d3 {[%emt 0:01:34]} 19. c3 {[%emt 0:01:17]} d2+ {[%emt 0:00:11]} 0-1

[Event "II Duchamp Open 2018"]
[Site "Rio de Janeiro"]
[Date "2018.11.14"]
[Round "2"]
[White "Nascimento, Pedro Henrique Alve"]
[Black "De Almeida, Roberto A. Ferreira"]
[Result "1-0"]
[ECO "D06"]
[WhiteElo "2007"]
[BlackElo "1784"]
[Annotator "NA RC"]
[PlyCount "85"]
[EventDate "2018.11.14"]
[EventType "swiss"]
[EventCountry "BRA"]
[SourceTitle "playchess.com"]
[Source "ChessBase"]
[SourceQuality "1"]
[TimeControl "5400+30"]

{[%evp 8,85,62,45,86,57,78,62,67,72,64,-6,52,43,51,45,49,47,38,20,25,19,20,11,41,0,47,34,27,13,50,27,73,-15,-20,-31,-31,-29,0,0,0,-7,40,26,62,0,0,0,19,23,16,21,569,744,879,5185,5414,6227,6087,6215,6079,12066,29975,29974,29983,12843,12843,12843,29985,29984,29984,29982,29982,29983,29983,29981,12846,29982,29982,29983]} 1. d4 {[%emt 0:00:00]} d5 {[%emt 0:00:09]} 2. c4 {[%emt 0:00:00]} Nf6 {[%emt 0:01:07]} 3. cxd5 {[%emt 0:00:23]} Qxd5 {[%emt 0:01:15]} 4. Nc3 {[%emt 0:00:19]} Qd8 {[%emt 0:00:18]} 5. e4 {[%emt 0:00:17]} e6 {[%emt 0:01:34] LiveBook: 10 Games} (5... e5 $11 {remains equal.}) 6. Nf3 {[%emt 0:00:34]} Bb4 {[%emt 0:01:07]} 7. Qa4+ {[%emt 0:03:01] D06: Damengambit (Seltene Züge)} (7. Bd3 c5 8. a3 cxd4 9. axb4 dxc3 10. bxc3 Qc7 11. c4 b6 12. Bb2 Bb7 13. O-O Nc6 14. Qd2 Ne7 {1-0 (36) Gleyzer,L (2323)-Vecek,M (2321) ICCF email 2015}) 7... Nc6 {[%emt 0:00:02]} 8. Bb5 {[%emt 0:05:02]} Bd7 {[%emt 0:01:21]} 9. Bg5 {[%emt 0:01:31]} ({Lieber} 9. Qc2 $14) 9... h6 {[%emt 0:01:29]} (9... a6 $11 10. Bxf6 axb5 11. Qxb4 Nxb4 12. Bxd8 Nc2+ 13. Kd2 Nxa1 14. Bxc7 b4 15. Rxa1 bxc3+ 16. bxc3 Ra6) 10. Bxf6 {[%emt 0:01:21]} Qxf6 {[%emt 0:00:55]} 11. O-O {[%emt 0:00:30]} Bxc3 $1 {[%emt 0:02:52]} 12. bxc3 {[%emt 0:05:47]} O-O $146 {[%emt 0:00:16]} ({Vorgänger:} 12... a6 13. Bxc6 Bxc6 14. Qc2 O-O {½-½ (38) Pereira,E (1748)-Monteiro,L (1775) Cordeiropolis 2013}) 13. Qd1 {[%emt 0:17:31]} a6 {[%emt 0:00:32]} 14. Bd3 {[%emt 0:01:45]} e5 {[%emt 0:02:36]} 15. d5 {[%emt 0:03:33]} Ne7 {[%emt 0:00:06]} 16. Nd2 {[%emt 0:02:25]} Ng6 {[%emt 0:04:30]} 17. g3 {[%emt 0:02:16]} c6 {[%emt 0:04:58]} 18. Re1 {[%emt 0:02:19]} Qg5 {[%emt 0:02:13]} 19. Nf3 {[%emt 0:01:12]} Qg4 {[%emt 0:01:10]} 20. Nh4 {[%emt 0:04:17]} (20. c4 $16) 20... Qxd1 {[%emt 0:01:33]} 21. Raxd1 {[%emt 0:00:18]} Nxh4 {[%emt 0:00:19]} 22. gxh4 {[%emt 0:00:06]} Bg4 {[%emt 0:01:56]} 23. Be2 {[%emt 0:00:57]} Bxe2 {[%emt 0:00:51]} 24. Rxe2 {[%emt 0:00:08]} Rad8 {[%emt 0:05:04]} 25. c4 {[%emt 0:01:13]} f5 {[%emt 0:02:52]} 26. a4 {[%emt 0:02:07]} ({White should play} 26. c5 $16) 26... fxe4 {[%emt 0:00:33]} 27. Rxe4 {[%emt 0:00:23]} Rf4 {[%emt 0:00:35]} 28. Rxf4 {[%emt 0:00:35]} exf4 {[%emt 0:00:09]} 29. Kg2 {[%emt 0:00:17]} Kf7 $2 {[%emt 0:02:45] [#]} (29... cxd5 $11 {and Black stays safe.} 30. cxd5 b5) 30. dxc6 $1 {[%emt 0:00:21]} Ke7 {[%emt 0:06:09]} 31. Rxd8 {[%emt 0:01:08]} Kxd8 {[%emt 0:00:01]} 32. cxb7 {[%emt 0:00:15]} Kc7 {[%emt 0:00:04]} 33. Kf3 {[%emt 0:00:55]} Kxb7 {[%emt 0:00:02]} 34. Ke4 {[%emt 0:00:28]} (34. Kxf4 $142 Kc7 35. Kf5 a5 36. Kg6 Kb6 37. Kxg7 h5 38. f4 Kc5 39. f5 Kxc4 40. f6) 34... Kb6 {[%emt 0:00:12]} 35. Kd5 {[%emt 0:00:10]} g5 {[%emt 0:03:13]} 36. hxg5 {[%emt 0:00:17]} hxg5 {[%emt 0:00:07]} 37. h3 {[%emt 0:00:11]} f3 {[%emt 0:00:59]} 38. c5+ {[%emt 0:00:48]} Kc7 {[%emt 0:00:14]} 39. a5 {[%emt 0:00:48]} Kd7 {[%emt 0:00:51]} 40. c6+ {[%emt 0:00:20]} Kc8 {[%emt 0:03:19]} 41. Ke5 {[%emt 0:06:08]} Kc7 {[%emt 0:00:47]} 42. Kf5 {[%emt 0:00:18]} Kxc6 {[%emt 0:00:14]} 43. Kxg5 {[%emt 0:00:04]} 1-0

[Event "II Duchamp Open 2018"]
[Site "Rio de Janeiro"]
[Date "2018.11.14"]
[Round "2"]
[White "Rodrigues, Nei Jorge"]
[Black "Santos Filho, Tadeu Sousa"]
[Result "1/2-1/2"]
[ECO "A45"]
[WhiteElo "1978"]
[BlackElo "2078"]
[Annotator "NA RC"]
[PlyCount "65"]
[EventDate "2018.11.14"]
[EventType "swiss"]
[EventCountry "BRA"]
[SourceTitle "playchess.com"]
[Source "ChessBase"]
[SourceQuality "1"]
[TimeControl "5400+30"]

{[%evp 8,65,11,40,12,6,6,17,26,0,29,9,13,0,19,18,21,11,20,0,15,18,36,8,27,18,0,-15,0,14,-7,-23,-14,-45,-60,-56,-66,-75,-65,-85,-92,-109,-81,-89,-76,-152,-96,-196,-97,-143,0,-193,0,-132,0,-198,0,-156,0,-202]} 1. d4 {[%emt 0:00:00]} Nf6 {[%emt 0:02:08]} 2. g3 {[%emt 0:00:24]} g6 {[%emt 0:00:10]} 3. Bg2 {[%emt 0:00:11]} Bg7 {[%emt 0:00:07]} 4. e4 {[%emt 0:00:58]} d6 {[%emt 0:00:11]} 5. Ne2 {[%emt 0:00:34]} O-O {[%emt 0:00:44] LiveBook: 709 Games} 6. Bg5 {B06: Modern Defence} (6. Nbc3 e5 7. h3 exd4 8. Nxd4 Bd7 9. O-O Nc6 10. Nb3 Re8 11. Re1 a6 12. a4 Be6 13. Nd5 Ne5 14. Nd4 Bd7 15. Bg5 c6 16. Nxf6+ Bxf6 17. Bxf6 Qxf6 {1-0 (66) Zubov,A (2612)-Demchenko,A (2645) Konya 2017}) 6... h6 7. Be3 {[%emt 0:03:15]} Ng4 $146 {[%emt 0:01:55]} ({Predecessor:} 7... e5 8. dxe5 dxe5 9. Qxd8 Rxd8 10. h3 b6 11. Nd2 Ba6 12. c4 Nc6 {0-1 (66) Tagliaferri,V (1807)-Spornberger,M (2225) Crema 2012}) 8. Bc1 {[%emt 0:00:37]} c5 {[%emt 0:02:43]} 9. O-O {[%emt 0:01:57]} cxd4 {[%emt 0:03:43]} 10. Nxd4 {[%emt 0:00:13]} Qb6 {[%emt 0:00:25]} 11. c3 {[%emt 0:02:34]} Nc6 {[%emt 0:02:09]} 12. h3 {[%emt 0:00:22]} Nge5 {[%emt 0:03:29]} 13. Ne2 {[%emt 0:05:52]} Rd8 {[%emt 0:10:48]} 14. Na3 {[%emt 0:06:41]} a6 {[%emt 0:20:23]} 15. Qc2 {[%emt 0:10:46]} Qc7 {[%emt 0:02:58]} 16. f4 {[%emt 0:01:54]} Nd7 {[%emt 0:01:53]} 17. f5 {[%emt 0:02:57]} g5 {[%emt 0:05:36]} 18. Nc4 {[%emt 0:03:18]} b5 {[%emt 0:06:31]} 19. Ne3 {[%emt 0:00:16]} Nf6 {[%emt 0:01:00]} 20. a4 {[%emt 0:14:49]} Bb7 {[%emt 0:04:40]} 21. Bd2 {[%emt 0:06:45]} Rdc8 {[%emt 0:02:42]} 22. Kh2 {[%emt 0:07:43]} Qb6 {[%emt 0:10:47]} 23. Qb1 {[%emt 0:05:36]} Ne5 {[%emt 0:04:23]} 24. b3 {[%emt 0:02:25]} Rab8 {[%emt 0:01:31]} 25. axb5 {[%emt 0:00:58]} axb5 {[%emt 0:00:25]} 26. b4 {[%emt 0:03:29]} (26. Nd5 $142 Bxd5 27. exd5) 26... Ra8 {[%emt 0:06:00]} 27. Qc2 $1 {[%emt 0:01:04]} (27. Rxa8 $17 Rxa8 28. Nd4) 27... Nc6 $2 {[%emt 0:01:11]} (27... Rxa1 $19 28. Rxa1 Nc4 29. Nxc4 Rxc4) 28. Qb3 $2 {[%emt 0:04:52]} Ne5 {[%emt 0:00:37]} (28... Rxa1 $17 29. Rxa1 Ne5) 29. Qc2 {[%emt 0:01:58]} Nc6 {[%emt 0:02:21]} {White should try} 30. Qd3 $11 {[%emt 0:05:10]} Ne5 {[%emt 0:00:40]} ({Better is} 30... Rxa1 $17 31. Rxa1 Ne5) 31. Qc2 {[%emt 0:00:44]} Nc6 {[%emt 0:01:27]} 32. Qb3 {[%emt 0:03:12]} Ne5 $11 {[%emt 0:00:42]} 33. Qc2 $1 {[%emt 0:00:34]} 1/2-1/2

[Event "II Duchamp Open 2018"]
[Site "Rio de Janeiro"]
[Date "2018.11.15"]
[Round "2"]
[White "Chang, Suzana"]
[Black "Reis, Virginia Lagrange M"]
[Result "1-0"]
[ECO "A36"]
[WhiteElo "1968"]
[BlackElo "1750"]
[Annotator "NA RC"]
[PlyCount "113"]
[EventDate "2018.11.14"]
[EventType "swiss"]
[EventCountry "BRA"]
[SourceTitle "playchess.com"]
[Source "ChessBase"]
[SourceQuality "1"]
[TimeControl "5400+30"]

{[%evp 9,113,4,4,5,-5,4,9,-22,26,12,26,16,57,42,48,38,112,69,131,135,129,134,326,258,264,193,248,250,286,213,241,243,232,241,314,171,214,98,471,514,778,419,1097,1137,1176,302,310,308,319,305,309,323,341,260,282,241,277,301,336,293,322,281,306,333,365,354,349,375,376,397,427,452,448,446,459,473,563,364,427,387,491,436,1126,529,581,551,758,674,708,787,772,825,932,812,928,1078,1033,1444,1148,1618,1178,1133,1203,1481,29992,1493]} 1. g3 {[%emt 0:00:00]} c5 {[%emt 0:00:00]} 2. c4 {[%emt 0:00:25]} Nc6 {[%emt 0:00:19]} 3. Bg2 {[%emt 0:00:13]} g6 {[%emt 0:00:20]} 4. Nc3 {[%emt 0:00:09]} Bg7 {[%emt 0:00:19]} 5. Rb1 {[%emt 0:02:08]} d6 {[%emt 0:02:12]} 6. d3 {[%emt 0:01:15] LiveBook: 19 Games} Rb8 {[%emt 0:01:17] A36: Symmetrical English vs ...g6: 4 Bg2 Bg7} (6... e5 7. a3 a5 8. Nf3 Nge7 9. O-O O-O 10. Ne1 Be6 11. Nc2 d5 12. cxd5 Nxd5 13. Ne3 Nde7 14. Bd2 Rb8 15. Na4 b6 16. b4 cxb4 17. axb4 axb4 18. Bxb4 Nxb4 19. Rxb4 b5 20. Nc5 Qd6 21. Nxe6 Qxb4 22. Nxf8 Bxf8 {½-½ (37) Berkes,F (2678)-Mekhitarian,K (2550) Khanty-Mansiysk 2010}) 7. Bd2 {[%emt 0:02:42]} Bd7 {[%emt 0:01:15]} 8. e3 $146 {[%emt 0:06:01]} ({Predecessor:} 8. a3 a5 9. Nf3 Nf6 10. O-O O-O 11. Ne1 b6 12. Nc2 Nd4 13. b4 axb4 14. axb4 Bc6 15. Nxd4 Bxg2 16. Kxg2 cxd4 17. Nb5 e5 18. e3 dxe3 19. Bxe3 {1-0 (40) Micheli,C (2268)-Wittmann,W (2286) Rogaska Slatina 2012}) 8... Ne5 {[%emt 0:07:20]} 9. Qc2 {[%emt 0:02:32]} Bc6 {[%emt 0:02:13]} 10. e4 {[%emt 0:00:20]} f5 {[%emt 0:01:30]} 11. f4 {[%emt 0:00:53]} Nf7 {[%emt 0:05:08]} 12. Nf3 {[%emt 0:01:23]} e5 {[%emt 0:04:08]} (12... e6 $14) 13. exf5 {[%emt 0:07:24]} Ne7 {[%emt 0:03:29]} 14. fxg6 {[%emt 0:01:34]} hxg6 {[%emt 0:00:19]} 15. O-O {[%emt 0:02:27]} Bd7 $2 {[%emt 0:03:12]} (15... exf4 $16 {is a better defense.} 16. Bxf4 O-O) 16. Rbe1 {[%emt 0:12:14]} O-O {[%emt 0:02:22]} 17. Ne4 {[%emt 0:11:52]} b6 {[%emt 0:02:04]} 18. fxe5 {[%emt 0:06:06]} dxe5 {[%emt 0:00:56]} 19. h3 {[%emt 0:04:41]} Qc7 {[%emt 0:05:18]} 20. g4 {[%emt 0:02:23]} Rbe8 {[%emt 0:01:33]} 21. Be3 {[%emt 0:04:30]} Nc6 {[%emt 0:01:02]} 22. Qf2 {[%emt 0:01:18]} Nb4 {[%emt 0:01:20]} 23. Rd1 {[%emt 0:00:21]} (23. Nh4 $18 Re6 24. Qd2) 23... Nxa2 $2 {[%emt 0:01:23]} (23... Bc6 $16) 24. Qh4 {[%emt 0:00:23]} Bc8 $2 {[%emt 0:06:39]} (24... Nb4 25. Nfg5 Nh6 26. Nf6+ Bxf6) 25. Bg5 {[%emt 0:07:09]} Nxg5 {[%emt 0:01:39]} (25... Nd6 $142 26. Nf6+ Bxf6) 26. Nfxg5 {[%emt 0:00:23]} ({Weaker is} 26. Nexg5 Bf6 $16) 26... Bh8 {[%emt 0:00:47] [#]} 27. Qh6 $2 {[%emt 0:04:40]} (27. Nd6 $1 {[%mdl 512]} e4 (27... Qxd6 28. Qh7#) 28. Nxe8 Rxe8 29. Rf7 Qxf7 30. Nxf7 Kxf7 31. Qh7+ Ke6 32. Qxg6+ Kd7 33. Bxe4 Bd4+ 34. Kg2) 27... Qg7 {[%emt 0:00:38]} 28. Qxg7+ {[%emt 0:00:04]} Bxg7 {[%emt 0:01:04]} 29. Nd6 {[%emt 0:00:17]} Nb4 {[%emt 0:08:44]} 30. Nxe8 {[%emt 0:00:55]} Rxe8 {[%emt 0:00:14]} 31. Ne4 {[%emt 0:01:45]} Rd8 {[%emt 0:02:38]} 32. Nf6+ {[%emt 0:05:18]} Kh8 {[%emt 0:05:15]} 33. Nd5 {[%emt 0:00:05]} Nc2 {[%emt 0:00:35]} 34. Be4 {[%emt 0:00:18]} Be6 {[%emt 0:02:23]} 35. Rf3 {[%emt 0:02:23]} Nd4 {[%emt 0:00:50]} 36. Rf2 {[%emt 0:00:05]} Kh7 {[%emt 0:10:36]} 37. Ra1 {[%emt 0:01:13]} Rd7 {[%emt 0:03:46]} 38. Raf1 {[%emt 0:01:34]} Kh8 {[%emt 0:01:49]} 39. Kg2 {[%emt 0:00:53]} g5 {[%emt 0:04:21]} 40. Nf6 {[%emt 0:00:53]} Rf7 {[%emt 0:01:49]} 41. Nh5 {[%emt 0:02:04]} Rxf2+ {[%emt 0:01:47]} 42. Rxf2 {[%emt 0:00:12]} ({Less strong is} 42. Kxf2 Bd7 $18) 42... Bg8 {[%emt 0:01:16]} 43. Nf6 {[%emt 0:03:13]} Be6 {[%emt 0:01:50]} 44. Nd5 {[%emt 0:02:14]} Kg8 {[%emt 0:00:54]} 45. Kf1 {[%emt 0:00:36]} Bf7 {[%emt 0:00:55]} (45... Bxd5 $142 46. Bxd5+ Kh7) 46. Nc7 {[%emt 0:00:30]} (46. Ne7+ $142 Kf8 47. Bd5) 46... Nb3 {[%emt 0:01:22]} 47. Ke2 {[%emt 0:01:57]} Nd4+ {[%emt 0:00:02]} 48. Ke3 {[%emt 0:00:39]} Bf8 {[%emt 0:00:41]} 49. Bd5 {[%emt 0:00:23]} Bxd5 {[%emt 0:00:41]} 50. cxd5 {[%emt 0:00:34]} Bd6 {[%emt 0:01:19]} 51. Ne8 {[%emt 0:01:26]} Nb5 {[%emt 0:00:35]} 52. Ke4 {[%emt 0:00:21]} Bb8 {[%emt 0:00:25]} 53. Rf6 {[%emt 0:00:22]} Nd4 {[%emt 0:00:45]} 54. d6 {[%emt 0:00:33]} Nc6 {[%emt 0:00:15]} 55. d7 {[%emt 0:00:39]} Nd8 {[%emt 0:00:03]} 56. Kd5 {[%emt 0:00:15]} Kh8 {[%emt 0:01:07]} 57. Rf8+ $18 {[%emt 0:00:18]} (57. Rg6 $142 Kh7 58. Rxg5 Bc7 59. Nxc7 c4 60. dxc4 Kh6 61. h4 Nb7 62. Ne8) 1-0

[Event "II Duchamp Open 2018"]
[Site "Rio de Janeiro"]
[Date "2018.11.14"]
[Round "2"]
[White "Ramos, Angelo Bil"]
[Black "Souza Neves, Andrey M."]
[Result "0-1"]
[ECO "C50"]
[WhiteElo "1952"]
[BlackElo "2074"]
[Annotator "NA RC"]
[PlyCount "84"]
[EventDate "2018.11.14"]
[EventType "swiss"]
[EventCountry "BRA"]
[SourceTitle "playchess.com"]
[Source "ChessBase"]
[SourceQuality "1"]
[TimeControl "5400+30"]

{[%evp 9,57,25,19,18,33,14,7,1,18,8,29,6,97,9,7,9,48,19,10,13,15,0,-2,0,0,-35,8,-25,-10,-89,-87,-89,-94,-91,-73,-91,-69,-109,-39,-50,-46,-48,-51,-97,-91,-89,-50,-88,-58,-77]} 1. e4 {[%emt 0:00:00]} e5 {[%emt 0:00:21]} 2. Nf3 {[%emt 0:00:00]} Nc6 {[%emt 0:00:05]} 3. Bc4 {[%emt 0:00:09]} Nf6 {[%emt 0:00:31]} 4. d3 {[%emt 0:00:16]} Bc5 {[%emt 0:00:16]} 5. O-O {[%emt 0:01:43]} O-O {[%emt 0:01:28]} 6. Nbd2 {[%emt 0:04:29]} d6 {[%emt 0:00:37]} 7. c3 {[%emt 0:00:25]} a5 {[%emt 0:03:18] LiveBook: 73 Games} 8. a4 {[%emt 0:00:21]} Qe7 {[%emt 0:01:23]} 9. Re1 {[%emt 0:01:10] C54: Giuoco Piano: 4 c3 Nf6, main lines with 5 d4 and 5 d3} (9. h3 Kh8 10. Re1 Be6 11. Qb3 Ra6 12. Nf1 Rb6 13. Qc2 Bxc4 14. dxc4 Nh5 15. Be3 Nf4 16. Bxc5 dxc5 {1-0 (46) Balashov,Y (2451)-Korensky,S (2194) Tambov 2017}) 9... Nh5 $146 {[%emt 0:02:21]} ({Predecessor:} 9... Ng4 10. Re2 Bb6 11. Nf1 Kh8 12. h3 Nf6 13. Ng3 Be6 14. Qb3 Nd7 15. Be3 Ra6 16. d4 Bxc4 17. Qxc4 {1-0 (46) Grabher,H (2311)-Dietmayer Kraeutler,M (2287) Austria 2006}) 10. Nb3 {[%emt 0:08:55]} Be6 {[%emt 0:04:18]} (10... Bb6 $11) 11. Bd5 {[%emt 0:04:10]} (11. Ng5 $16 Nf4 12. Nxe6 Nxe6 13. Nxc5 dxc5 14. Qg4) 11... Bb6 {[%emt 0:08:17]} 12. d4 {[%emt 0:02:58]} Rae8 {[%emt 0:08:24]} 13. Be3 {[%emt 0:12:54]} exd4 {[%emt 0:06:39]} 14. Nfxd4 {[%emt 0:01:43]} Nxd4 {[%emt 0:06:54]} 15. Bxd4 {[%emt 0:04:04]} Bxd4 {[%emt 0:03:51]} 16. Nxd4 {[%emt 0:00:43]} Nf4 {[%emt 0:06:30]} 17. Nf3 {[%emt 0:09:10]} c6 {[%emt 0:04:38]} 18. Bb3 {[%emt 0:02:38]} Bg4 {[%emt 0:01:26]} 19. Qd2 {[%emt 0:10:38] [#]} (19. Re3 $11 {bleibt in der Remisbreite.}) 19... Nh3+ $1 {[%emt 0:04:37]} 20. gxh3 {[%emt 0:04:08]} Bxf3 {[%emt 0:00:10]} 21. Bd1 {[%emt 0:01:36]} Qf6 {[%emt 0:02:04]} 22. Bxf3 {[%emt 0:01:20]} Qxf3 {[%emt 0:00:04]} 23. Qe3 {[%emt 0:01:17]} Qxe3 {[%emt 0:07:33]} (23... Qh5 $17 24. Qd3 Re6) 24. Rxe3 {[%emt 0:00:12]} f5 {[%emt 0:00:14]} 25. Rd1 {[%emt 0:02:42]} f4 {[%emt 0:01:32]} ({Of course not} 25... Rxe4 $6 26. Rxe4 fxe4 27. Rxd6 $14) 26. Red3 {[%emt 0:00:15]} Rxe4 {[%emt 0:05:25]} 27. Rxd6 {[%emt 0:00:10]} f3 {[%emt 0:02:44]} ({Better is} 27... Rxa4 $17 28. Rd7 b5) 28. R6d4 {[%emt 0:03:15]} Rfe8 {[%emt 0:02:50]} 29. Kf1 $17 {[%emt 0:00:42]} Re2 {[%emt 0:05:06]} 30. R4d3 {[%emt 0:04:14]} Rxb2 {[%emt 0:01:11]} 31. Rxf3 {[%emt 0:00:10]} Rf8 {[%emt 0:00:22]} 32. Kg2 {[%emt 0:01:23]} Rxf3 {[%emt 0:01:32]} 33. Kxf3 {[%emt 0:00:02]} Rb3 {[%emt 0:00:38]} 34. Rd3 {[%emt 0:02:31]} b5 {[%emt 0:00:25]} 35. axb5 {[%emt 0:00:37]} cxb5 {[%emt 0:00:08]} 36. Ke4 {[%emt 0:00:15]} a4 {[%emt 0:01:33]} 37. Rd8+ {[%emt 0:00:20]} Kf7 {[%emt 0:00:06]} 38. Kd4 {[%emt 0:00:06]} Rb2 {[%emt 0:01:28]} 39. Kc5 {[%emt 0:00:22]} a3 {[%emt 0:00:36]} 40. Ra8 {[%emt 0:00:07]} a2 {[%emt 0:00:06]} 41. f3 {[%emt 0:00:50]} Kf6 {[%emt 0:00:47]} 42. c4 {[%emt 0:00:38]} b4 {[%emt 0:01:03]} 0-1